fUSD/lending_fUSD_20260219
["ID","MTS","AMOUNT","RATE_DAILY","PERIOD"]
[405965594,1771465846847,-166.66,0.00011286,2]
[405965595,1771465846857,-166.66,0.00011518,2]
[405965596,1771465846871,-166.66,0.00011751,2]
[405965597,1771465846880,-162.380719,0.00011762,2]
[405965598,1771465846891,-277.35679052,0.00011762,2]
[405965599,1771465846901,-500.0,0.00011762,2]
[405965600,1771465846910,-500.0,0.00011762,2]
[405965601,1771465846920,-500.0,0.00011762,2]
[405965602,1771465846929,-500.0,0.00011762,2]
[405965603,1771465846939,-500.0,0.00011762,2]
[405965604,1771465846948,-500.0,0.00011762,2]
[405965605,1771465846957,-500.0,0.00011762,2]
[405965606,1771465846967,-500.0,0.00011762,2]
[405965607,1771465846977,-387.56911288,0.00011762,2]
[405965608,1771465846991,-112.43088712,0.00011762,2]
[405965609,1771465847001,-391.98699887,0.00011762,2]
[405965610,1771465847015,-108.01300113,0.00011762,2]
[405965611,1771465847024,-250.0,0.00011762,2]
[405965612,1771465847033,-174.61919141,0.00011762,2]
[405965613,1771465847043,-500.0,0.00011762,2]
[405965614,1771465847052,-250.0,0.00011762,2]
[405965615,1771465847066,-721.12765535,0.00011762,2]
[405965616,1771465847075,-500.0,0.00011762,2]
[405965617,1771465847085,-250.0,0.00011762,2]
[405965618,1771465847094,-500.0,0.00011762,2]
[405965619,1771465847104,-250.0,0.00011762,2]
[405965620,1771465847114,-500.0,0.00011762,2]
[405965621,1771465847123,-250.0,0.00011762,2]
[405965622,1771465847133,-500.0,0.00011762,2]
[405965623,1771465847144,-252.78256174,0.00011762,2]
[405965624,1771465847154,-500.0,0.00011762,2]
[405965625,1771465847163,-500.0,0.00011762,2]
[405965626,1771465847173,-500.0,0.00011762,2]
[405965627,1771465847183,-500.0,0.00011762,2]
[405965628,1771465847193,-500.0,0.00011762,2]
[405965629,1771465847202,-578.20924308,0.00011762,2]
[405965630,1771465847212,-693.3919763,0.00011762,2]
[405965631,1771465847222,-589.04422344,0.00011817,2]
[405965632,1771465847233,-130.00325598,0.00011817,2]
[405965633,1771465847243,-166.66,0.00011828,2]
[405965634,1771465847253,-718.21674402,0.00011872,2]
[405965664,1771466626089,1021.0,0.00018,30]
[405965676,1771466767163,4353.43,6.529e-05,2]
[405965730,1771467031665,-171.95,8.577e-05,2]
[405965731,1771467031675,-941.514,9.922e-05,2]
[405965732,1771467031684,-185.01604616,9.922e-05,2]
[405965733,1771467031694,-500.0,9.924e-05,2]
[405965734,1771467031703,-507.20270358,9.924e-05,2]
[405965735,1771467031935,-38.90688842,9.924e-05,2]
[405965736,1771467031945,-150.0,9.924e-05,2]
[405965737,1771467031954,-300.0,9.924e-05,2]
[405965738,1771467031963,-1200.0,9.924e-05,2]
[405965739,1771467031972,-5057.21434984,9.925e-05,2]
[405965740,1771467031984,-390.37271931,9.925e-05,2]
[405965743,1771467031999,-534.06656813,9.925e-05,2]
[405965745,1771467032009,-882.31924771,9.925e-05,2]
[405965747,1771467032020,-2091.27211635,9.925e-05,2]
[405965748,1771467032044,-843.15999999,9.925e-05,2]
[405965749,1771467032056,-310.05,9.925e-05,2]
[405965750,1771467032067,-2879.21746646,9.925e-05,2]
[405965751,1771467032081,-1080900.76450592,9.925e-05,2]
[405965752,1771467032093,-101084.15724077,9.925e-05,2]
[405965753,1771467037718,-476.9799995,9.925e-05,2]
[405965754,1771467037772,-12190.42460037,9.925e-05,2]
[405965755,1771467037783,-1316.98739506,9.925e-05,2]
[405965756,1771467037794,-19448.32808573,9.925e-05,2]
[405965757,1771467037829,-209325.21068924,9.925e-05,2]
[405965758,1771467037880,-6999.4,9.925e-05,2]
[405965759,1771467037890,-448.03156372,9.925e-05,2]
[405965760,1771467037937,-507.71285999,9.925e-05,2]
[405965763,1771467039882,-1774275.76303962,9.925e-05,2]
[405965764,1771467040093,-494.38176163,9.925e-05,2]
[405965800,1771467043575,-100404.70825781,9.925e-05,2]
[405965808,1771467045684,-307.49596618,9.925e-05,2]
[405965809,1771467045790,-1759.16991075,9.925e-05,2]
[405965879,1771467633763,150.0,0.00011375,120]
[405965887,1771468163382,19593.26,0.00018,30]
[405965895,1771468231991,-171.29,9.467e-05,2]
[405965896,1771468232000,-1200.0,9.522e-05,2]
[405965897,1771468232011,-300.0,9.522e-05,2]
[405965898,1771468232020,-150.0,9.522e-05,2]
[405965899,1771468232030,-500.0,9.523e-05,2]
[405965900,1771468232039,-454.61264677,9.523e-05,2]
[405965901,1771468232052,-45.38735323,9.523e-05,2]
[405965902,1771468232063,-500.0,9.523e-05,2]
[405965903,1771468232072,-500.0,9.523e-05,2]
[405965904,1771468232083,-500.0,9.523e-05,2]
[405965905,1771468232092,-500.0,9.523e-05,2]
[405965906,1771468232102,-500.0,9.523e-05,2]
[405965907,1771468232111,-500.0,9.523e-05,2]
[405965908,1771468232121,-500.0,9.523e-05,2]
[405965909,1771468232132,-500.0,9.523e-05,2]
[405965910,1771468232143,-500.0,9.523e-05,2]
[405965911,1771468232153,-500.0,9.523e-05,2]
[405965912,1771468232165,-500.0,9.523e-05,2]
[405965913,1771468232176,-500.0,9.523e-05,2]
[405965914,1771468232187,-500.0,9.523e-05,2]
[405965915,1771468232197,-500.0,9.523e-05,2]
[405965916,1771468232208,-500.0,9.523e-05,2]
[405965917,1771468232218,-500.0,9.523e-05,2]
[405965918,1771468232227,-500.0,9.523e-05,2]
[405965919,1771468232237,-500.0,9.523e-05,2]
[405965920,1771468232246,-459.95961146,9.523e-05,2]
[405965921,1771468232255,-500.0,9.523e-05,2]
[405965922,1771468232265,-500.0,9.523e-05,2]
[405965923,1771468232274,-500.0,9.523e-05,2]
[405965924,1771468232283,-500.0,9.523e-05,2]
[405965925,1771468232291,-500.0,9.523e-05,2]
[405965926,1771468232301,-500.0,9.523e-05,2]
[405965927,1771468232310,-500.0,9.523e-05,2]
[405965928,1771468232319,-500.0,9.523e-05,2]
[405965929,1771468232328,-500.0,9.523e-05,2]
[405965930,1771468232337,-500.0,9.523e-05,2]
[405965931,1771468232346,-500.0,9.523e-05,2]
[405965932,1771468232355,-500.0,9.523e-05,2]
[405965933,1771468232364,-500.0,9.523e-05,2]
[405965934,1771468232373,-500.0,9.523e-05,2]
[405965935,1771468232382,-118.70551238,9.524e-05,2]
[405965937,1771468237936,-650.06881087,9.524e-05,2]
[405965938,1771468237992,-539.93551002,9.524e-05,2]
[405965939,1771468238049,-605.91046908,9.524e-05,2]
[405965940,1771468238162,-7256.75379404,9.524e-05,2]
[405965941,1771468238174,-110518.25740112,9.524e-05,2]
[405965942,1771468238214,-993.34152341,9.524e-05,2]
[405965947,1771468240005,-90264.4699349,9.524e-05,2]
[405965948,1771468240222,-3531.35,9.524e-05,2]
[405965955,1771468243743,-658.88696035,9.524e-05,2]
[405965956,1771468244380,-4592.69195026,9.524e-05,2]
[405965957,1771468244437,-1163.69555954,9.524e-05,2]
[405965959,1771468245839,-2486.13672743,9.524e-05,2]
[405965960,1771468245850,-17493.75258268,9.524e-05,2]
[405965961,1771468245895,-373717.8597362,9.524e-05,2]
[405965962,1771468246004,-3275.848593,9.524e-05,2]
[405965963,1771468246014,-4341.46095644,9.524e-05,2]
[405965964,1771468246026,-616.0,9.524e-05,2]
[405965965,1771468246059,-2026.32947214,9.524e-05,2]
[405965966,1771468246115,-597.9482543,9.524e-05,2]
[405966102,1771468934371,180.75994842,1e-05,2]
[405966119,1771469432060,-609.8984744,8.924e-05,2]
[405966122,1771469432217,-390.1015256,8.924e-05,2]
[405966123,1771469432227,-128.8984744,8.944e-05,2]
[405966124,1771469432238,-121.1015256,8.944e-05,2]
[405966125,1771469432247,-1500.0,8.963e-05,2]
[405966126,1771469432257,-200.0,8.99e-05,2]
[405966127,1771469432266,-300.0,9.144e-05,2]
[405966128,1771469432275,-1200.0,9.144e-05,2]
[405966129,1771469432286,-7269.76,9.145e-05,2]
[405966130,1771469432296,-1600.0,9.293e-05,2]
[405966131,1771469432306,-166.7,9.376e-05,2]
[405966132,1771469432316,-1093.95203723,9.515e-05,2]
[405966133,1771469432325,-150.0,9.523e-05,2]
[405966134,1771469432335,-8830.3133213,9.524e-05,2]
[405966135,1771469432344,-11700.0499416,9.524e-05,2]
[405966136,1771469432354,-159.0,9.524e-05,3]
[405966137,1771469432364,-150.0,9.524e-05,3]
[405966138,1771469432373,-32855.2885,9.525e-05,2]
[405966139,1771469432382,-1475.1273,9.525e-05,2]
[405966140,1771469432391,-1278.1228,9.525e-05,2]
[405966141,1771469432400,-53407.0744,9.525e-05,2]
[405966142,1771469432409,-2500.0,9.525e-05,2]
[405966143,1771469432418,-5733.33091259,9.525e-05,2]
[405966144,1771469432426,-574.64602598,9.552e-05,2]
[405966145,1771469432435,-10000.0,9.625e-05,2]
[405966146,1771469432444,-118168.00437227,9.625e-05,2]
[405966147,1771469432455,-42272.28728292,9.625e-05,2]
[405966148,1771469432466,-48937.71522651,9.625e-05,2]
[405966255,1771469438167,-1028.17508243,9.625e-05,2]
[405966256,1771469438179,-1187.75083997,9.625e-05,2]
[405966257,1771469438190,-4135.55298167,9.625e-05,2]
[405966258,1771469438276,-378.29286825,9.625e-05,2]
[405966259,1771469438382,-8199.12932782,9.625e-05,2]
[405966265,1771469440259,-456.42770192,9.625e-05,2]
[405966266,1771469440574,-801.04957216,9.625e-05,2]
[405966304,1771470078603,150.0,0.00011233,120]
[405966310,1771470325558,-1200.0,7.999e-05,2]
[405966311,1771470325583,-9000.0,8e-05,2]
[405966312,1771470325607,-9393.31,8.534e-05,2]
[405966313,1771470325631,-1680.0,8.799e-05,2]
[405966314,1771470325653,-1044.951,9.138e-05,2]
[405966315,1771470325674,-184.237,9.138e-05,2]
[405966317,1771470344357,5761.502,9e-05,2]
[405966326,1771470632344,-155.81,7.125e-05,2]
[405966327,1771470632354,-151.0,8.86e-05,2]
[405966328,1771470632364,-1200.0,8.862e-05,2]
[405966329,1771470632373,-826.51099426,8.863e-05,2]
[405966336,1771470638329,-490.0,8.862e-05,2]
[405966337,1771470640319,-10.0,8.862e-05,2]
[405966338,1771470640329,-288.51436949,8.862e-05,2]
[405966339,1771470640755,-121.12371006,8.862e-05,2]
[405966340,1771470640764,-329.21912811,8.862e-05,2]
[405966341,1771470640790,-170.78087189,8.862e-05,2]
[405966342,1771470640799,-220.28342205,8.862e-05,2]
[405966343,1771470640808,-278.81453906,8.862e-05,2]
[405966344,1771470640819,-221.18546094,8.862e-05,2]
[405966345,1771470640827,-292.73893544,8.862e-05,2]
[405966346,1771470640841,-207.26106456,8.862e-05,2]
[405966347,1771470640850,-482.46417915,8.862e-05,2]
[405966348,1771470640861,-17.53582085,8.862e-05,2]
[405966349,1771470640870,-438.92684529,8.862e-05,2]
[405966350,1771470640878,-500.0,8.862e-05,2]
[405966351,1771470640887,-500.0,8.862e-05,2]
[405966352,1771470640896,-500.0,8.862e-05,2]
[405966353,1771470640904,-500.0,8.862e-05,2]
[405966354,1771470640913,-500.0,8.862e-05,2]
[405966355,1771470640922,-171.92927428,8.862e-05,2]
[405966356,1771470640934,-328.07072572,8.862e-05,2]
[405966357,1771470640943,-500.0,8.862e-05,2]
[405966358,1771470640951,-500.0,8.862e-05,2]
[405966359,1771470640960,-482.75860826,8.862e-05,2]
[405966360,1771470640971,-17.24139174,8.862e-05,2]
[405966361,1771470640979,-500.0,8.862e-05,2]
[405966362,1771470640988,-500.0,8.862e-05,2]
[405966363,1771470640997,-500.0,8.862e-05,2]
[405966364,1771470641006,-500.0,8.862e-05,2]
[405966365,1771470641015,-500.0,8.862e-05,2]
[405966366,1771470641028,-500.0,8.862e-05,2]
[405966367,1771470641037,-500.0,8.862e-05,2]
[405966368,1771470641046,-500.0,8.862e-05,2]
[405966369,1771470641056,-500.0,8.862e-05,2]
[405966370,1771470641065,-500.0,8.862e-05,2]
[405966371,1771470641074,-500.0,8.862e-05,2]
[405966372,1771470641083,-500.0,8.862e-05,2]
[405966373,1771470641092,-500.0,8.862e-05,2]
[405966374,1771470641101,-500.0,8.862e-05,2]
[405966375,1771470641111,-500.0,8.862e-05,2]
[405966376,1771470641120,-500.0,8.862e-05,2]
[405966377,1771470641129,-500.0,8.862e-05,2]
[405966378,1771470641139,-500.0,8.862e-05,2]
[405966379,1771470641150,-500.0,8.862e-05,2]
[405966380,1771470641159,-500.0,8.862e-05,2]
[405966381,1771470641168,-500.0,8.862e-05,2]
[405966382,1771470641178,-500.0,8.862e-05,2]
[405966383,1771470641187,-500.0,8.862e-05,2]
[405966384,1771470641199,-500.0,8.862e-05,2]
[405966385,1771470641208,-500.0,8.862e-05,2]
[405966386,1771470641217,-500.0,8.862e-05,2]
[405966387,1771470641228,-500.0,8.862e-05,2]
[405966388,1771470641236,-500.0,8.862e-05,2]
[405966389,1771470641246,-500.0,8.862e-05,2]
[405966390,1771470641255,-500.0,8.862e-05,2]
[405966391,1771470641264,-500.0,8.862e-05,2]
[405966392,1771470641273,-500.0,8.862e-05,2]
[405966393,1771470641282,-500.0,8.862e-05,2]
[405966394,1771470641290,-500.0,8.862e-05,2]
[405966395,1771470641299,-500.0,8.862e-05,2]
[405966396,1771470641308,-500.0,8.862e-05,2]
[405966397,1771470641317,-500.0,8.862e-05,2]
[405966398,1771470641326,-1755758.52164788,8.863e-05,2]
[405966399,1771470641342,-9502.95454108,8.863e-05,2]
[405966400,1771470641353,-1118.06652458,8.863e-05,2]
[405966401,1771470641365,-862.91952571,8.863e-05,2]
[405966405,1771470644596,-673.05420999,8.863e-05,2]
[405966406,1771470644610,-189139.41754761,8.863e-05,2]
[405966407,1771470644620,-9785.47891595,8.863e-05,2]
[405966408,1771470644647,-2880.04780582,8.863e-05,2]
[405966409,1771470644660,-475.776,8.863e-05,2]
[405966410,1771470644674,-756.36239246,8.863e-05,2]
[405966411,1771470644687,-5076.61635857,8.863e-05,2]
[405966418,1771470646292,-21454.90245532,8.863e-05,2]
[405966419,1771470646399,-1384.00984328,8.863e-05,2]
[405966420,1771470646410,-9196.37707667,8.863e-05,2]
[405966421,1771470646533,-23.3383661,8.863e-05,2]
[405966422,1771470646546,-432.60481996,8.863e-05,2]
[405966423,1771470646557,-812.18755796,8.863e-05,2]
[405966424,1771470646567,-2085.65510674,8.863e-05,2]
[405966425,1771470646578,-3110.30451518,8.863e-05,2]
[405966535,1771470668378,159.0,8.863e-05,3]
[405966536,1771470725820,160.0,8.863e-05,3]
[405966537,1771470787857,160.0,8.863e-05,3]
[405966538,1771470845558,160.0,8.863e-05,3]
[405966541,1771470906493,160.0,8.863e-05,3]
[405966542,1771470910369,150.0,8.863e-05,3]
[405966543,1771471210624,151.0,8.863e-05,3]
[405966545,1771471507157,151.0,8.863e-05,3]
[405966554,1771471809118,151.0,8.863e-05,3]
[405966561,1771471831376,-173.45,6.583e-05,2]
[405966563,1771471831386,-250.0,7.242e-05,2]
[405966565,1771471831395,-184.06,7.242e-05,2]
[405966567,1771471831405,-200.0,7.725e-05,2]
[405966569,1771471831414,-162.97795508,7.999e-05,2]
[405966571,1771471831427,-137.02204492,7.999e-05,2]
[405966573,1771471831436,-1028.0,7.999e-05,2]
[405966575,1771471831446,-18000.0,8e-05,2]
[405966577,1771471831456,-273.48827003,8.123e-05,2]
[405966578,1771471831467,-171.29,8.219e-05,2]
[405966579,1771471831476,-1000.0,8.219e-05,2]
[405966580,1771471831490,-1600.0,8.335e-05,2]
[405966581,1771471831499,-271.57,8.404e-05,2]
[405966582,1771471831509,-276.0,8.412e-05,2]
[405966583,1771471831518,-150.0,8.502e-05,2]
[405966584,1771471831528,-150.06353578,8.503e-05,2]
[405966585,1771471831538,-500.0,8.503e-05,2]
[405966586,1771471831547,-500.0,8.503e-05,2]
[405966587,1771471831556,-500.0,8.503e-05,2]
[405966588,1771471831568,-500.0,8.503e-05,2]
[405966589,1771471831577,-500.0,8.503e-05,2]
[405966590,1771471831587,-150.0,8.503e-05,2]
[405966591,1771471831597,-150.0,8.503e-05,2]
[405966592,1771471831606,-500.0,8.503e-05,2]
[405966593,1771471831615,-500.0,8.503e-05,2]
[405966594,1771471831625,-150.0,8.503e-05,2]
[405966595,1771471831634,-500.0,8.503e-05,2]
[405966596,1771471831643,-500.0,8.503e-05,2]
[405966597,1771471831652,-500.0,8.503e-05,2]
[405966598,1771471831661,-500.0,8.503e-05,2]
[405966599,1771471831671,-500.0,8.558e-05,2]
[405966600,1771471831681,-500.0,8.558e-05,2]
[405966601,1771471831691,-500.0,8.558e-05,2]
[405966602,1771471831700,-500.0,8.558e-05,2]
[405966603,1771471831709,-500.0,8.558e-05,2]
[405966604,1771471831719,-201.98749395,8.558e-05,2]
[405966605,1771471831728,-500.0,8.558e-05,2]
[405966606,1771471831737,-500.0,8.558e-05,2]
[405966607,1771471831747,-500.0,8.558e-05,2]
[405966608,1771471831756,-500.0,8.558e-05,2]
[405966609,1771471831766,-500.0,8.558e-05,2]
[405966610,1771471831775,-500.0,8.558e-05,2]
[405966611,1771471831784,-3501.0867,8.562e-05,2]
[405966612,1771471831793,-2500.0,8.562e-05,2]
[405966613,1771471831803,-835.961,8.597e-05,2]
[405966614,1771471831812,-500.0,8.613e-05,2]
[405966615,1771471831821,-500.0,8.613e-05,2]
[405966616,1771471831830,-500.0,8.613e-05,2]
[405966617,1771471831840,-500.0,8.613e-05,2]
[405966618,1771471831849,-500.0,8.613e-05,2]
[405966619,1771471831858,-500.0,8.613e-05,2]
[405966620,1771471831868,-500.0,8.613e-05,2]
[405966621,1771471831877,-500.0,8.613e-05,2]
[405966622,1771471831887,-500.0,8.613e-05,2]
[405966623,1771471831896,-500.0,8.613e-05,2]
[405966624,1771471831906,-500.0,8.613e-05,2]
[405966625,1771471831915,-500.0,8.613e-05,2]
[405966626,1771471831924,-6211.0,8.63e-05,2]
[405966627,1771471831933,-500.0,8.643e-05,2]
[405966628,1771471831943,-500.23788655,8.643e-05,2]
[405966629,1771471831952,-308.96610472,8.643e-05,2]
[405966630,1771471831961,-500.0,8.643e-05,2]
[405966631,1771471831972,-500.0,8.643e-05,2]
[405966632,1771471831981,-500.17714761,8.643e-05,2]
[405966633,1771471831990,-500.0,8.643e-05,2]
[405966634,1771471831999,-7705.1474,8.661e-05,2]
[405966635,1771471832009,-271.75,8.661e-05,2]
[405966636,1771471832019,-500.0,8.667e-05,2]
[405966637,1771471832028,-500.0,8.667e-05,2]
[405966638,1771471832037,-500.0,8.667e-05,2]
[405966639,1771471832047,-500.0,8.667e-05,2]
[405966640,1771471832056,-500.0,8.667e-05,2]
[405966641,1771471832065,-500.0,8.667e-05,2]
[405966642,1771471832074,-500.0,8.667e-05,2]
[405966643,1771471832083,-500.0,8.667e-05,2]
[405966644,1771471832092,-500.0,8.667e-05,2]
[405966645,1771471832102,-500.0,8.667e-05,2]
[405966646,1771471832111,-500.0,8.667e-05,2]
[405966647,1771471832120,-500.0,8.667e-05,2]
[405966648,1771471832129,-500.0,8.722e-05,2]
[405966649,1771471832138,-500.0,8.722e-05,2]
[405966650,1771471832147,-500.0,8.722e-05,2]
[405966651,1771471832156,-500.0,8.722e-05,2]
[405966652,1771471832167,-500.0,8.722e-05,2]
[405966653,1771471832177,-500.0,8.722e-05,2]
[405966654,1771471832188,-500.0,8.722e-05,2]
[405966655,1771471832198,-500.0,8.722e-05,2]
[405966656,1771471832208,-500.0,8.722e-05,2]
[405966657,1771471832217,-500.0,8.722e-05,2]
[405966658,1771471832227,-500.0,8.722e-05,2]
[405966659,1771471832237,-500.0,8.722e-05,2]
[405966660,1771471832246,-20318.98577109,8.763e-05,2]
[405966661,1771471837489,-166.66,7.928e-05,2]
[405966662,1771471837499,-166.66,8.189e-05,2]
[405966663,1771471837509,-166.66,8.451e-05,2]
[405966664,1771471837521,-500.0,8.643e-05,2]
[405966665,1771471837533,-166.66,8.713e-05,2]
[405966666,1771471837543,-19.33986445,8.763e-05,2]
[405966667,1771471837554,-3604.8,8.763e-05,2]
[405966668,1771471837594,-748.26893567,8.763e-05,2]
[405966669,1771471837650,-4516.2373811,8.763e-05,2]
[405966836,1771471839562,-3647.65654769,8.763e-05,2]
[405966838,1771471839571,-500.0,8.777e-05,2]
[405966840,1771471839581,-501.49147741,8.777e-05,2]
[405966842,1771471839591,-500.0,8.777e-05,2]
[405966845,1771471839600,-500.0,8.777e-05,2]
[405966847,1771471839610,-500.0,8.777e-05,2]
[405966849,1771471839619,-500.0,8.777e-05,2]
[405966850,1771471839628,-500.0,8.777e-05,2]
[405966852,1771471839638,-500.0,8.777e-05,2]
[405966854,1771471839647,-500.0,8.777e-05,2]
[405966856,1771471839656,-500.0,8.777e-05,2]
[405966858,1771471839665,-333.64462139,8.777e-05,2]
[405966860,1771471839674,-500.0,8.777e-05,2]
[405966862,1771471839683,-420.0,8.799e-05,2]
[405966864,1771471839693,-500.0,8.831e-05,2]
[405966867,1771471839702,-500.0,8.832e-05,2]
[405966869,1771471839711,-151.72147324,8.832e-05,2]
[405966871,1771471839721,-500.0,8.832e-05,2]
[405966873,1771471839730,-500.0,8.832e-05,2]
[405966875,1771471839739,-500.0,8.832e-05,2]
[405966877,1771471839749,-351.71255009,8.832e-05,2]
[405966879,1771471839758,-500.0,8.832e-05,2]
[405966881,1771471839767,-500.0,8.832e-05,2]
[405966882,1771471839777,-500.0,8.832e-05,2]
[405966885,1771471839787,-151.0,8.861e-05,2]
[405966887,1771471839796,-151.0,8.861e-05,2]
[405966889,1771471839805,-487.1081722,8.863e-05,2]
[405966891,1771471839814,-9999.99,8.864e-05,2]
[405966892,1771471839822,-150.99,8.864e-05,2]
[405966894,1771471839831,-299.99,8.864e-05,2]
[405966896,1771471839841,-999.99,8.864e-05,2]
[405966898,1771471839851,-9999.99,8.864e-05,2]
[405966900,1771471839860,-2773.27,8.864e-05,2]
[405966902,1771471839869,-4242.75,8.864e-05,2]
[405966904,1771471839877,-200751.3,8.864e-05,2]
[405966906,1771471839887,-239.0,8.876e-05,2]
[405966908,1771471839895,-500.0,8.886e-05,2]
[405966910,1771471839905,-500.0,8.887e-05,2]
[405966912,1771471839914,-500.0,8.887e-05,2]
[405966914,1771471839923,-500.0,8.887e-05,2]
[405966916,1771471839934,-500.0,8.887e-05,2]
[405966918,1771471839943,-500.0,8.887e-05,2]
[405966920,1771471839951,-500.0,8.887e-05,2]
[405966922,1771471839961,-500.0,8.887e-05,2]
[405966924,1771471839970,-500.0,8.887e-05,2]
[405966926,1771471839979,-271.75,8.935e-05,2]
[405966929,1771471839988,-1832.0,8.939e-05,2]
[405966931,1771471839998,-500.0,8.941e-05,2]
[405966933,1771471840007,-500.0,8.941e-05,2]
[405966935,1771471840016,-500.0,8.941e-05,2]
[405966937,1771471840025,-500.0,8.941e-05,2]
[405966939,1771471840035,-500.0,8.941e-05,2]
[405966941,1771471840044,-303.07347656,8.941e-05,2]
[405966943,1771471840053,-500.0,8.941e-05,2]
[405966945,1771471840062,-500.0,8.941e-05,2]
[405966947,1771471840071,-23159.16,8.963e-05,2]
[405966948,1771471840080,-166.66,8.974e-05,2]
[405966950,1771471840091,-272.12713526,8.996e-05,2]
[405966953,1771471840100,-500.0,8.996e-05,2]
[405966955,1771471840110,-500.0,8.996e-05,2]
[405966957,1771471840119,-500.0,8.996e-05,2]
[405966959,1771471840128,-500.0,8.996e-05,2]
[405966961,1771471840137,-500.0,8.996e-05,2]
[405966963,1771471840146,-500.0,8.996e-05,2]
[405966965,1771471840155,-181.57484427,9.048e-05,2]
[405966967,1771471840164,-500.0,9.051e-05,2]
[405966969,1771471840173,-500.0,9.051e-05,2]
[405966971,1771471840182,-500.0,9.051e-05,2]
[405966973,1771471840191,-500.0,9.051e-05,2]
[405966975,1771471840200,-500.0,9.051e-05,2]
[405966977,1771471840209,-500.0,9.051e-05,2]
[405966979,1771471840218,-500.0,9.106e-05,2]
[405966981,1771471840227,-500.0,9.106e-05,2]
[405966983,1771471840236,-393.10829242,9.106e-05,2]
[405966985,1771471840245,-639.53612921,9.106e-05,2]
[405966987,1771471840254,-500.0,9.106e-05,2]
[405966989,1771471840262,-500.0,9.106e-05,2]
[405966991,1771471840271,-153.83106779,9.135e-05,2]
[405966993,1771471840280,-152.0,9.138e-05,2]
[405966995,1771471840289,-152.0,9.138e-05,2]
[405966997,1771471840298,-152.0,9.138e-05,2]
[405966999,1771471840307,-152.0,9.138e-05,2]
[405967001,1771471840316,-152.0,9.138e-05,2]
[405967003,1771471840324,-152.0,9.138e-05,2]
[405967005,1771471840333,-152.0,9.138e-05,2]
[405967007,1771471840342,-1508.0,9.138e-05,2]
[405967009,1771471840351,-1508.0,9.138e-05,2]
[405967011,1771471840360,-1508.0,9.138e-05,2]
[405967013,1771471840369,-152.0,9.138e-05,2]
[405967015,1771471840378,-153.0,9.138e-05,2]
[405967017,1771471840387,-1508.0,9.138e-05,2]
[405967019,1771471840396,-159.0,9.138e-05,2]
[405967021,1771471840405,-152.0,9.138e-05,2]
[405967023,1771471840414,-153.0,9.138e-05,2]
[405967025,1771471840423,-1508.0,9.138e-05,2]
[405967027,1771471840432,-152.0,9.138e-05,2]
[405967029,1771471840443,-159.0,9.138e-05,2]
[405967031,1771471840452,-153.0,9.138e-05,2]
[405967033,1771471840461,-1508.0,9.138e-05,2]
[405967035,1771471840470,-152.0,9.138e-05,2]
[405967037,1771471840479,-159.0,9.138e-05,2]
[405967038,1771471840489,-153.0,9.138e-05,2]
[405967040,1771471840501,-1508.0,9.138e-05,2]
[405967042,1771471840512,-152.0,9.138e-05,2]
[405967044,1771471840521,-159.0,9.138e-05,2]
[405967046,1771471840531,-153.0,9.138e-05,2]
[405967048,1771471840540,-1508.0,9.138e-05,2]
[405967051,1771471840550,-152.0,9.138e-05,2]
[405967053,1771471840560,-153.0,9.138e-05,2]
[405967054,1771471840569,-165.59213857,9.138e-05,2]
[405967056,1771471840578,-1508.0,9.138e-05,2]
[405967058,1771471840587,-152.0,9.138e-05,2]
[405967060,1771471840596,-153.0,9.138e-05,2]
[405967062,1771471840606,-1508.0,9.138e-05,2]
[405967064,1771471840615,-152.0,9.138e-05,2]
[405967066,1771471840623,-153.0,9.138e-05,2]
[405967068,1771471840632,-1508.0,9.138e-05,2]
[405967070,1771471840642,-152.0,9.138e-05,2]
[405967072,1771471840651,-153.0,9.138e-05,2]
[405967074,1771471840659,-1508.0,9.138e-05,2]
[405967076,1771471840669,-152.0,9.138e-05,2]
[405967078,1771471840677,-153.0,9.138e-05,2]
[405967080,1771471840687,-1508.0,9.138e-05,2]
[405967082,1771471840696,-152.0,9.138e-05,2]